bitfinex-derivatives/quotes_SOLF0:USTF0_20250307
["timestamp","ask_amount","ask_price","bid_price","bid_amount"]
[1741361396033,13.73699904,145.26,145.23,0.04553242]
[1741361396236,0.04882498,145.25,145.23,0.04553242]
[1741361396432,0.04882498,145.25,145.24,6.8843]
[1741361396642,2.498e-05,145.25,145.24,53.1471602]
[1741361396932,2.783,145.34,145.24,49.7028602]
[1741361397139,13.73699904,145.34,145.28,46.2628602]
[1741361397739,6.88,145.33,145.25,82.9628602]
[1741361397932,0.0431035,145.32,145.3,0.0472589]
[1741361398744,0.0431035,145.32,145.31,6.881]
[1741361398942,13.78010254,145.32,145.3,0.0472589]
[1741361399439,0.0431035,145.32,145.3,0.0472589]
[1741361399840,0.0431035,145.32,145.31,6.881]
[1741361400039,0.0431035,145.32,145.3,0.0472589]
[1741361400441,13.78010254,145.32,145.3,0.0472589]
[1741361400747,13.78010254,145.32,145.28,104.06683739]
[1741361401540,6.8819,145.29,145.28,91.51863739]
[1741361401744,13.78010254,145.32,145.28,91.51863739]
[1741361402339,36.7,145.31,145.28,78.97203739]
[1741361402647,6.8824,145.28,145.27,119.49376794]
[1741361402840,6.8824,145.28,145.27,53.19950533]
[1741361403041,56.5852602,145.28,145.27,53.19950533]
[1741361403236,46.2628602,145.28,145.23,58.28933467]
[1741361403446,53.1471602,145.24,145.23,37.69423467]
[1741361403645,89.8471602,145.24,145.23,30.81423467]
[1741361403950,93.2871602,145.24,145.23,30.81423467]
[1741361404149,86.4028602,145.24,145.22,2.98222179]
[1741361404351,6.8852,145.22,145.21,157.65984208]
[1741361404647,0.05253474,145.24,145.21,157.65984208]
[1741361405950,0.05253474,145.24,145.2,0.04886926]
[1741361406946,0.05253474,145.24,145.22,6.8848]
[1741361407248,0.05253474,145.24,145.2,0.04886926]
[1741361407644,0.05253474,145.24,145.2,6.92886926]
[1741361407846,0.05253474,145.24,145.2,0.04886926]
[1741361408040,36.75253474,145.24,145.2,13.81506926]
[1741361408246,36.75253474,145.24,145.2,6.92886926]
[1741361408552,0.05253474,145.24,145.2,0.04886926]
[1741361409449,0.05253474,145.24,145.2,6.93506926]
[1741361409751,36.77253474,145.24,145.2,0.04886926]
[1741361409952,46.2628602,145.23,145.2,0.04886926]
[1741361410150,6.8857,145.21,145.2,0.04886926]
[1741361410355,6.8857,145.21,145.2,6.926e-05]
[1741361411552,10.3257,145.21,145.2,6.926e-05]
[1741361411849,3.44,145.21,145.07,2.6775]
[1741361412049,328.71840797,145.22,145.09,46.2628602]
[1741361412250,282.45554777,145.22,145.09,46.2628602]
[1741361412451,289.34074777,145.22,145.12,46.2628602]
[1741361412751,282.45554777,145.22,145.12,46.2628602]
[1741361412952,112.59554777,145.22,145.15,46.2628602]
[1741361413253,68.99563304,145.19,145.16,0.04411576]
[1741361413467,99.0059068,145.2,145.18,46.2628602]
[1741361413759,182.56806126,145.21,145.18,129.2457204]
[1741361413942,178.38996126,145.21,145.18,132.6857204]
[1741361414151,131.33566126,145.21,145.2,6.8862]
[1741361414344,279.72613911,145.22,145.18,132.6857204]
[1741361414547,279.77554329,145.22,145.21,53.1485602]
[1741361414949,279.77554329,145.22,145.21,56.5885602]
[1741361415146,251.66244329,145.22,145.21,56.5885602]
[1741361415347,224.76924329,145.22,145.21,56.5885602]
[1741361415551,198.85744329,145.22,145.21,118.5885602]
[1741361416156,198.85744329,145.22,145.21,115.1485602]
[1741361416555,0.04940418,145.22,145.19,0.0477852]
[1741361417159,0.04940418,145.22,145.14,114.03994859]
[1741361417758,6.8884,145.16,145.14,114.03994859]
[1741361418358,0.04360106,145.16,145.14,114.08667143]
[1741361418553,0.04360106,145.16,145.06,114.03994859]
[1741361418753,2.6967,145.16,145.06,114.03994859]
[1741361419651,0.04536961,145.12,145.1,0.05179858]
[1741361419856,36.74536961,145.12,145.06,114.03994859]
[1741361420060,2.769,145.11,145.06,114.03994859]
[1741361421156,2.769,145.11,145.07,0.0494574]
[1741361421357,2.769,145.11,145.0,46.2628602]
[1741361422060,2.769,145.11,144.97,160.30280879]
[1741361422061,6.8934,145.05,144.97,160.30280879]
[1741361422260,36.72,145.06,144.97,160.30280879]
[1741361422456,0.04697195,145.02,145.0,0.04350853]
[1741361422857,0.04697195,145.02,145.01,6.8952]
[1741361424464,0.04697195,145.02,145.0,0.04350853]
[1741361425065,7.195e-05,145.02,145.01,6.8952]
[1741361425566,2.769,145.11,145.01,40.16]
[1741361425763,2.769,145.11,145.03,46.2628602]
[1741361426262,2.7278,145.13,145.06,46.2628602]
[1741361426462,5.4629,145.17,145.09,46.2628602]
[1741361427959,0.05283124,145.14,145.12,0.04867832]
[1741361428560,0.05283124,145.14,145.06,46.2628602]
[1741361428761,0.05283124,145.14,145.03,82.9828602]
[1741361429058,5.4629,145.17,145.1,46.2628602]
[1741361429263,5.4629,145.17,145.07,46.2628602]
[1741361429767,0.04752929,145.13,145.11,0.04650536]
[1741361431168,0.04752929,145.13,145.11,6.93690536]
[1741361431367,0.04752929,145.13,145.11,0.04650536]
[1741361432969,0.04752929,145.13,145.06,46.2628602]
[1741361433565,0.04752929,145.13,145.12,6.89]
[1741361434364,2.929e-05,145.13,145.12,6.89]
[1741361436068,2.7413,145.22,145.12,108.2628602]
[1741361436771,46.2628602,145.2,145.07,28.3416853]
[1741361437066,46.2628602,145.2,145.12,0.05097169]
[1741361437267,0.04591896,145.15,145.12,0.05097169]
[1741361437464,6.8911,145.1,145.08,28.3416853]
[1741361437669,2.8498,145.14,145.08,28.3416853]
[1741361438068,2.9886,145.13,145.08,28.3416853]
[1741361438266,2.9686,145.13,145.08,28.3416853]
[1741361438667,2.9686,145.13,145.09,0.04763186]
[1741361438869,0.04918609,145.12,145.09,0.04763186]
[1741361439372,0.04918609,145.12,145.09,46.31049206]
[1741361439574,0.04918609,145.12,145.09,0.04763186]
[1741361441163,6.8909,145.1,145.09,0.04763186]
[1741361441773,6.8909,145.1,145.07,16.18629583]
[1741361441774,6.8919,145.08,145.07,16.18629583]
[1741361442075,36.72,145.1,145.07,16.18629583]
[1741361442976,36.76980447,145.1,145.06,28.3416853]
[1741361443172,447.0028602,145.09,145.04,88.08654859]
[1741361443372,53.1561602,145.05,145.04,25.92514859]
[1741361443570,82.9828602,145.05,145.01,9.49516484]
[1741361443772,6.8947,145.02,145.01,9.49516484]
[1741361444076,82.9828602,145.05,145.01,9.49516484]
[1741361444077,0.05132461,145.03,145.01,9.49516484]
[1741361444472,36.72,145.02,145.01,9.49516484]
[1741361444972,36.77132461,145.03,145.01,9.49516484]
[1741361445173,0.05132461,145.03,145.01,9.49516484]
[1741361445871,6.8947,145.02,145.01,9.49516484]
[1741361446469,6.8947,145.02,145.01,6.484e-05]
[1741361446773,6.8952,145.01,145.0,0.04658462]
[1741361446975,0.05132461,145.03,145.0,0.04658462]
[1741361447279,36.72,145.01,145.0,0.04658462]
[1741361447578,43.6152,145.01,145.0,0.04658462]
[1741361447779,36.72,145.01,145.0,0.04658462]
[1741361448176,36.72,145.01,145.0,6.94228462]
[1741361448376,36.72,145.01,145.0,0.04658462]
[1741361448873,0.05132461,145.03,145.0,0.04658462]
[1741361449274,36.74,145.09,145.0,0.04658462]
[1741361449673,46.2628602,145.04,144.92,6.1496]
[1741361449873,36.74,145.03,144.92,6.1496]
[1741361450582,0.04576706,144.99,144.96,0.04863567]
[1741361451284,36.72,145.07,144.96,46.31149587]
[1741361451475,36.72,145.07,144.96,46.2628602]
[1741361451882,6.8934,145.05,144.99,6.8958]
[1741361452082,36.72,145.07,144.96,46.2628602]
[1741361452384,0.04610215,145.03,145.01,0.04704105]
[1741361453984,36.74,145.02,145.01,0.04704105]
[1741361454281,43.6347,145.02,145.01,0.04704105]
[1741361454689,40.18,145.02,144.92,6.1496]
[1741361454884,36.74,145.02,144.92,6.1496]
[1741361455087,36.74,145.02,144.92,52.4124602]
[1741361455383,6.8953,145.01,144.92,52.4124602]
[1741361455586,36.74,145.02,144.93,36.74]
[1741361455792,0.04711251,144.98,144.95,0.05177317]
[1741361456588,6.8973,144.97,144.95,0.05177317]
[1741361456782,0.04711251,144.98,144.95,0.05177317]
[1741361457193,36.74,145.05,144.95,0.05177317]
[1741361457488,43.6336,145.05,145.0,6.8953]
[1741361457695,36.74,145.06,144.93,36.74]
[1741361457882,36.74,145.06,144.93,83.0028602]
[1741361458293,36.74,145.06,144.94,46.2628602]
[1741361458497,0.04744948,145.01,144.98,0.04812307]
[1741361459192,6.94304948,145.01,144.98,0.04812307]
[1741361459394,36.78744948,145.01,144.98,0.04812307]
[1741361459797,6.8961,144.99,144.98,0.04812307]
[1741361460597,6.8961,144.99,144.82,147.63726522]
[1741361460598,256.5828602,144.99,144.82,147.63726522]
[1741361460788,46.2628602,144.93,144.82,147.63726522]
[1741361460992,36.74,144.92,144.82,147.63726522]
[1741361461191,6.9033,144.84,144.82,147.63726522]
[1741361461489,36.74,144.86,144.82,147.63726522]
[1741361461690,253.1828602,144.9,144.82,147.63726522]
[1741361461691,36.74,144.85,144.82,147.63726522]
[1741361461895,43.6433,144.84,144.83,0.05281922]
[1741361462088,43.6433,144.84,144.83,1.922e-05]
[1741361462289,86.4628602,144.84,144.82,100.60708444]
[1741361462490,7.0007,144.83,144.82,68.78688444]
[1741361462686,7.0007,144.83,144.78,282.17193043]
[1741361462687,46.3597602,144.83,144.78,282.17193043]
[1741361462889,46.2628602,144.79,144.78,113.92970292]
[1741361463085,454.0885602,144.79,144.78,113.92970292]
[1741361463293,494.2885602,144.79,144.78,103.52470292]
[1741361463496,490.8285602,144.79,144.78,92.92860292]
[1741361463992,89.9085602,144.79,144.78,34.50430292]
[1741361464297,43.6457,144.79,144.78,34.50430292]
[1741361464495,83.0028602,144.79,144.78,34.50430292]
[1741361464889,83.0028602,144.79,144.78,1.58060292]
[1741361465392,271.09950036,144.79,144.77,7.636e-05]
[1741361465599,240.2628602,144.78,144.65,6.3407]
[1741361465797,46.2628602,144.71,144.62,6.9138]
[1741361466002,39.08,144.7,144.61,3.0095]
[1741361466303,39.08,144.7,144.57,5.9693]
[1741361466304,46.2628602,144.68,144.57,12.885]
[1741361466496,46.2628602,144.68,144.57,5.9693]
[1741361466797,6.9119,144.66,144.57,5.9693]
[1741361466996,46.2628602,144.68,144.57,5.9693]
[1741361466997,0.05246509,144.64,144.61,0.0476567]
[1741361467390,0.05246509,144.64,144.53,3.0467]
[1741361467586,0.05246509,144.64,144.6,6.9144]
[1741361467797,65.9416572,144.67,144.55,46.2628602]
[1741361467995,65.9416572,144.67,144.53,42.1067]
[1741361467996,65.9416572,144.67,144.58,46.2628602]
[1741361468200,65.9416572,144.63,144.58,46.2628602]
[1741361468396,65.9416572,144.63,144.53,39.06]
[1741361468695,0.04779194,144.62,144.59,0.04599567]
[1741361469000,44.84504914,144.63,144.59,0.04599567]
[1741361469200,4.914e-05,144.63,144.59,0.04599567]
[1741361469403,4.914e-05,144.62,144.55,46.2628602]
[1741361469595,4.914e-05,144.62,144.58,46.2628602]
[1741361469901,4.914e-05,144.62,144.58,89.1228602]
[1741361470091,4.914e-05,144.62,144.61,6.9143]
[1741361470292,31.0602749,144.62,144.59,108.2628602]
[1741361470502,5.1479749,144.62,144.6,5.7511]
[1741361470705,5.19696985,144.62,144.6,5.7511]
[1741361470999,5.19696985,144.62,144.6,2.7879]
[1741361471192,0.04899495,144.62,144.59,0.05105041]
[1741361473002,311.96956448,144.63,144.59,0.05105041]
[1741361474193,6.96567086,144.62,144.59,0.05105041]
[1741361474392,0.05187086,144.62,144.59,0.05105041]
[1741361474704,0.05187086,144.62,144.59,6.96585041]
[1741361475005,0.05187086,144.62,144.59,0.05105041]
[1741361475598,272.48956448,144.63,144.59,0.05105041]
[1741361475805,231.90276448,144.63,144.62,6.9138]
[1741361476102,111.59336448,144.63,144.62,6.9138]
[1741361476298,99.47056448,144.63,144.62,6.9138]
[1741361476498,99.47056448,144.63,144.6,6.9147]
[1741361476697,99.47056448,144.63,144.59,0.05105041]
[1741361476898,99.52323553,144.63,144.59,0.05105041]
[1741361477599,99.52323553,144.63,144.62,6.9138]
[1741361477806,99.52323553,144.63,144.59,0.05105041]
[1741361478702,99.52323553,144.63,144.62,6.9138]
[1741361480007,99.52323553,144.63,144.59,0.05105041]
[1741361480703,145.87653553,144.63,144.59,0.05105041]
[1741361480906,138.96323553,144.63,144.59,0.05105041]
[1741361481408,138.96323553,144.63,144.51,46.2628602]
[1741361481605,46.2628602,144.62,144.47,5.8585]
[1741361481805,46.2628602,144.62,144.48,46.2628602]
[1741361482299,46.2628602,144.57,144.36,329.52172704]
[1741361482496,46.2628602,144.51,144.39,1.20417308]
[1741361482706,0.04469738,144.48,144.45,0.04406281]
[1741361482903,39.42,144.47,144.45,0.04406281]
[1741361483108,39.42,144.47,144.37,2.9741]
[1741361483310,39.47213567,144.47,144.45,0.04927681]
[1741361483603,39.42,144.47,144.37,49.2369602]
[1741361483806,0.04613925,144.47,144.45,0.0524585]
[1741361484004,0.04613925,144.47,144.46,6.9211]
[1741361484208,39.44,144.53,144.43,39.46]
[1741361484416,5.455e-05,144.48,144.45,46.30995731]
[1741361484708,39.48,144.62,144.45,253.72995731]
[1741361484910,39.48,144.66,144.58,6.9157]
[1741361485106,199.8197,144.68,144.56,46.2628602]
[1741361485501,52.0825602,144.68,144.55,5.8935]
[1741361486114,0.04550894,144.6,144.59,6.915]
[1741361486409,5.8197,144.68,144.58,0.04993322]
[1741361486717,42.4101,144.73,144.62,6.9138]
[1741361486926,46.2628602,144.71,144.6,46.2628602]
[1741361487224,46.2628602,144.71,144.61,6.914]
[1741361487417,46.2628602,144.71,144.59,39.58]
[1741361487619,99.5238056,144.63,144.6,0.04385348]
[1741361489180,46.2628602,144.62,144.5,46.2628602]
[1741361489331,6.9165,144.57,144.5,6.9195]
[1741361489630,39.76,144.61,144.47,49.0624602]
[1741361489835,6.9153,144.59,144.47,49.0624602]
[1741361490054,39.76,144.61,144.47,49.0624602]
[1741361490234,0.04657495,144.54,144.52,0.04661777]
[1741361490441,39.76,144.61,144.53,46.2628602]
[1741361490832,46.6744,144.61,144.53,46.2628602]
[1741361491035,39.76,144.61,144.48,1.38427464]
[1741361491230,46.2628602,144.6,144.49,46.2628602]
[1741361491433,46.2628602,144.6,144.48,8.30467464]
[1741361491782,0.05285443,144.56,144.53,0.04681552]
[1741361491946,6.9171,144.55,144.53,0.04681552]
[1741361492141,39.75285443,144.56,144.53,0.04681552]
[1741361493141,6.9176,144.54,144.53,0.04681552]
[1741361493450,39.75285443,144.56,144.53,0.04681552]
[1741361494321,6.9176,144.54,144.53,0.04681552]
[1741361494916,6.9193,144.51,144.48,1.38427464]
[1741361495110,86.01571463,144.56,144.48,1.38427464]
[1741361495311,85.9628602,144.56,144.48,1.38427464]
[1741361495620,85.9628602,144.56,144.43,46.2628602]
[1741361496016,0.04452495,144.51,144.48,0.04482815]
[1741361496716,39.52452495,144.51,144.48,0.04482815]
[1741361496915,39.52452495,144.51,144.41,27.90234741]
[1741361497117,6.2441,144.5,144.41,27.90234741]
[1741361497419,6.2441,144.5,144.42,6.9234]
[1741361497614,6.2441,144.5,144.41,27.90234741]
[1741361498013,0.04974788,144.47,144.44,6.96836054]
[1741361498220,0.04974788,144.47,144.44,0.04626054]
[1741361498515,0.04974788,144.47,144.46,6.9215]
[1741361498716,6.2441,144.57,144.46,46.2628602]
[1741361498917,6.2441,144.57,144.49,46.2628602]
[1741361499216,6.2441,144.57,144.46,46.2628602]
[1741361499420,46.2628602,144.56,144.44,39.6]
[1741361499918,6.97146773,144.51,144.49,0.04662441]
[1741361500122,39.6,144.53,144.49,0.04662441]
[1741361500417,0.05024547,144.51,144.49,0.04662441]
[1741361500615,45.8241,144.57,144.49,0.04662441]
[1741361500815,0.0477881,144.51,144.49,0.04662441]
[1741361501021,45.8241,144.57,144.49,0.04662441]
[1741361501317,39.6,144.6,144.5,46.2628602]
[1741361501710,39.6,144.6,144.53,6.9181]
[1741361501925,39.6,144.6,144.47,108.2628602]
[1741361502123,3.1214,144.59,144.47,108.2628602]
[1741361502420,6.2876,144.62,144.52,0.05268156]
[1741361502621,0.04512231,144.54,144.5,86.0828602]
[1741361502918,6.9162,144.57,144.56,0.04411092]
[1741361503117,46.2628602,144.61,144.48,4.3042]
[1741361503316,0.0461756,144.58,144.55,0.05265444]
[1741361503826,39.74,144.57,144.48,6.9204]
[1741361504029,46.2628602,144.55,144.45,39.8]
[1741361504327,46.2628602,144.55,144.43,27.90234741]
[1741361504518,6.9195,144.51,144.43,27.90234741]
[1741361504719,39.72,144.51,144.43,27.90234741]
[1741361505026,6.9211,144.47,144.46,0.04845021]
[1741361505215,0.05072844,144.48,144.43,27.90234741]
[1741361506420,0.05072844,144.48,144.44,0.05182766]
[1741361506623,6.9219,144.45,144.44,0.05182766]
[1741361506822,40.12,144.47,144.43,22.92347507]
[1741361507517,0.05072844,144.48,144.45,46.2628602]
[1741361507830,0.05072844,144.48,144.47,6.921]
[1741361508132,0.05072844,144.48,144.45,0.04724666]
[1741361509731,0.05072844,144.48,144.45,46.31010686]
[1741361509920,0.05072844,144.48,144.47,6.921]
[1741361510323,40.2,144.56,144.47,3.46]
[1741361510523,40.16,144.61,144.5,46.2628602]
[1741361510727,6.2267,144.62,144.53,46.2628602]
[1741361510924,6.9143,144.61,144.53,46.2628602]
[1741361511225,6.2267,144.62,144.51,3.0448]
[1741361511428,46.31054618,144.58,144.55,0.04395407]
[1741361511729,40.16,144.57,144.42,49.6029602]
[1741361511934,46.2628602,144.55,144.42,49.6029602]
[1741361512228,46.2628602,144.55,144.42,3.3401]
[1741361512425,46.2628602,144.52,144.39,46.2628602]
[1741361512629,6.9216,144.46,144.44,0.0486407]
[1741361512825,6.9216,144.46,144.45,74.36180101]
[1741361513033,6.9216,144.46,144.45,69.33280101]
[1741361513228,40.1,144.46,144.43,111.54270152]
[1741361513424,86.3628602,144.46,144.43,107.60580152]
[1741361513826,6.9224,144.44,144.43,107.60580152]
[1741361514036,6.9224,144.44,144.43,75.3631973]
[1741361514224,10.3824,144.44,144.43,63.5410973]
[1741361514829,40.1,144.46,144.43,63.5410973]
[1741361515628,0.0476713,144.47,144.43,63.5410973]
[1741361515852,40.14,144.55,144.43,63.5410973]
[1741361516033,40.14,144.55,144.44,6.2937]
[1741361516652,86.6228602,144.59,144.45,46.2628602]
[1741361517036,0.04413464,144.53,144.51,0.04629681]
[1741361517241,40.4,144.59,144.51,0.04629681]
[1741361517441,0.0506686,144.53,144.51,0.04629681]
[1741361517635,113.04126628,144.63,144.52,86.6828602]
[1741361517841,113.04126628,144.63,144.53,6.3801]
[1741361518334,113.04126628,144.63,144.53,3.2851]
[1741361518838,0.05091222,144.59,144.57,0.04859648]
[1741361520729,447.9228602,144.69,144.57,0.04859648]
[1741361520730,40.26,144.66,144.57,0.04859648]
[1741361520937,40.26,144.66,144.53,3.2851]
[1741361521238,194.0,144.69,144.57,46.2628602]
[1741361521533,46.2628602,144.68,144.58,3.3376]
[1741361521734,46.2628602,144.68,144.55,53.1799602]
[1741361521932,0.04692042,144.64,144.62,0.04929212]
[1741361522132,40.38,144.63,144.62,0.04929212]
[1741361522335,40.38,144.63,144.47,46.2628602]
[1741361522336,86.6428602,144.63,144.47,46.2628602]
[1741361522534,86.6428602,144.63,144.4,207.6]
[1741361522535,46.2628602,144.56,144.45,3.0847]
[1741361522832,40.36,144.55,144.45,3.0847]
[1741361523232,194.0999,144.62,144.49,46.2628602]
[1741361523426,40.44,144.62,144.52,46.2628602]
[1741361523830,46.2628602,144.6,144.45,3.0847]
[1741361524031,46.2628602,144.57,144.45,3.0847]
[1741361524238,40.48,144.56,144.45,3.0847]
[1741361524433,6.9189,144.52,144.46,6.9214]
[1741361524640,0.04505742,144.52,144.49,0.04597011]
[1741361525136,0.04505742,144.52,144.31,94.19937963]
[1741361525137,86.6428602,144.51,144.31,94.19937963]
[1741361525443,86.6428602,144.51,144.35,111.7607]
[1741361525631,86.6428602,144.51,144.38,46.2628602]
[1741361525834,46.2628602,144.48,144.35,9.3607]
[1741361526033,46.2628602,144.45,144.35,6.3367]
[1741361526237,46.2628602,144.42,144.34,9.54404973]
[1741361526439,0.0468017,144.41,144.39,6.709e-05]
[1741361526742,53.1871602,144.4,144.39,6.709e-05]
[1741361527139,56.6471602,144.4,144.39,6.709e-05]
[1741361527440,50.18624977,144.4,144.26,9.54404973]
[1741361527645,46.72624977,144.32,144.26,9.54404973]
[1741361527935,40.46,144.31,144.26,9.54404973]
[1741361528532,40.46,144.31,144.27,0.0440903]
[1741361528841,0.04612622,144.3,144.27,46.77034007]
[1741361529029,40.42,144.39,144.27,50.02804007]
[1741361529237,46.72624977,144.42,144.28,49.98954977]
[1741361529436,40.6,144.44,144.29,1.38609744]
[1741361529437,46.72624977,144.43,144.29,1.38609744]
[1741361529736,46.72624977,144.43,144.31,46.72624977]
[1741361529945,87.40624977,144.48,144.34,46.72624977]
[1741361530235,40.68,144.48,144.37,46.72624977]
[1741361530441,40.68,144.48,144.4,46.72624977]
[1741361530638,113.30126628,144.48,144.37,46.72624977]
[1741361530830,113.30126628,144.48,144.35,3.0698]
[1741361531034,113.30126628,144.48,144.4,46.72624977]
[1741361531239,72.62126628,144.48,144.43,6.9229]
[1741361531443,62.60137472,144.48,144.43,46.77909452]
[1741361531838,57.56797472,144.48,144.44,43.6898]
[1741361532240,42.46997472,144.48,144.44,43.6898]
[1741361532437,87.30624977,144.55,144.44,3.0698]
[1741361532842,0.04376932,144.47,144.44,3.0698]
[1741361533040,3.3101,144.54,144.48,0.04602606]
[1741361533235,3.3101,144.54,144.41,46.72624977]
[1741361533433,46.77644658,144.52,144.38,254.44624977]
[1741361533639,3.2518,144.51,144.46,0.04812307]
[1741361533947,6.921,144.47,144.46,0.04812307]
[1741361534940,6.9238,144.42,144.35,46.72624977]
[1741361535145,46.72624977,144.46,144.33,40.46]
[1741361535344,40.48,144.45,144.33,40.46]
[1741361535546,6.922,144.45,144.35,46.72624977]
[1741361535745,87.20624977,144.49,144.35,46.72624977]
[1741361535946,46.72624977,144.46,144.35,46.72624977]
[1741361536142,46.72624977,144.46,144.34,1.38561729]
[1741361536143,0.04535125,144.43,144.41,0.05057188]
[1741361536745,6.9234,144.42,144.41,0.05057188]
[1741361536952,0.04535125,144.43,144.41,0.05057188]
[1741361537151,6.96875125,144.43,144.41,0.05057188]
[1741361537351,0.04535125,144.43,144.41,0.05057188]
[1741361540561,0.04535125,144.43,144.42,6.9234]
[1741361540858,0.04535125,144.43,144.41,0.05057188]
[1741361541055,0.04535125,144.43,144.41,6.97427188]
[1741361541253,0.04535125,144.43,144.41,0.05057188]
[1741361542055,6.9234,144.42,144.41,0.05057188]
[1741361542459,6.9234,144.42,144.35,6.9267]
[1741361542460,40.50535125,144.43,144.34,1.38561729]
[1741361542655,40.46,144.43,144.34,1.38561729]
[1741361543063,6.9237,144.42,144.34,1.38561729]
[1741361543263,40.46,144.43,144.37,6.9254]
[1741361543558,0.04480845,144.41,144.39,0.05005336]
[1741361545259,0.04480845,144.41,144.34,1.38561729]
[1741361545260,40.36480845,144.41,144.34,1.38561729]
[1741361545461,46.72624977,144.39,144.3,6.9288]
[1741361545659,46.72624977,144.39,144.28,3.2144]
[1741361545860,3.2569,144.4,144.28,3.2144]
[1741361546150,40.32,144.41,144.3,46.72624977]
[1741361546351,207.7,144.44,144.33,46.72624977]
[1741361546551,40.32,144.45,144.34,0.04881732]
[1741361546757,40.32,144.45,144.34,3.1449]
[1741361547060,3.2569,144.46,144.36,46.72624977]
[1741361547270,40.26,144.47,144.39,46.72624977]
[1741361547855,0.05037238,144.44,144.42,6.97007473]
[1741361548061,0.05037238,144.44,144.42,0.04707473]
[1741361548358,6.9242,144.41,144.34,3.1449]
[1741361548558,40.26,144.47,144.34,3.1449]
[1741361548965,6.9245,144.4,144.35,6.9264]
[1741361549265,86.98624977,144.42,144.27,46.72624977]
[1741361549461,46.72624977,144.39,144.28,6.5248]
[1741361549664,6.9267,144.36,144.35,0.04713668]
[1741361549961,0.04691986,144.37,144.26,46.72624977]
[1741361549962,40.28691986,144.37,144.26,46.72624977]
[1741361550155,49.98444977,144.36,144.23,87.98289259]
[1741361551064,49.98444977,144.36,144.32,0.04881316]
[1741361551655,3.2582,144.36,144.32,0.04881316]
[1741361551860,40.24691986,144.37,144.32,0.04881316]
[1741361552162,0.04691986,144.37,144.32,46.77506293]
[1741361552364,0.04691986,144.37,144.32,108.77506293]
[1741361552566,6.9225,144.44,144.39,6.9246]
[1741361552773,40.16,144.45,144.35,46.72624977]
[1741361552955,6.9237,144.42,144.35,46.72624977]
[1741361553361,40.16,144.45,144.35,46.72624977]
[1741361553765,0.05242992,144.41,144.39,0.05072907]
[1741361553971,254.52624977,144.48,144.39,0.05072907]
[1741361553972,40.06,144.5,144.39,0.05072907]
[1741361554168,40.06,144.5,144.39,3.35732907]
[1741361554374,40.06,144.5,144.4,46.72624977]
[1741361554668,3.5031,144.52,144.4,50.30174977]
[1741361555371,0.04669867,144.47,144.44,0.04837785]
[1741361556266,0.04669867,144.47,144.46,6.9215]
[1741361556460,0.04669867,144.47,144.44,0.04837785]
[1741361556869,0.04669867,144.47,144.46,6.9215]
[1741361557468,207.8,144.54,144.44,0.04837785]
[1741361557671,40.04,144.54,144.49,6.9197]
[1741361558074,40.04,144.54,144.46,6.9214]
[1741361558270,40.04,144.54,144.45,46.72624977]
[1741361558573,40.04,144.54,144.47,6.9205]
[1741361558766,0.0498259,144.51,144.48,0.05064604]
[1741361558967,6.9693259,144.51,144.48,0.05064604]
[1741361559270,0.0498259,144.51,144.48,0.05064604]
[1741361559669,0.0498259,144.51,144.49,6.9197]
[1741361559870,0.0498259,144.51,144.48,0.05064604]
[1741361562074,39.82,144.58,144.48,0.05064604]
[1741361562377,261.27724977,144.6,144.47,46.72624977]
[1741361562579,214.551,144.6,144.5,46.72624977]
[1741361562880,3.5031,144.6,144.51,3.6618]
[1741361563063,3.5031,144.6,144.51,65.6618]
[1741361563269,0.04632294,144.56,144.54,0.04533889]
[1741361565073,0.04632294,144.56,144.55,6.9171]
[1741361565275,6.9138,144.62,144.54,0.04533889]
[1741361565475,46.72624977,144.63,144.51,39.72]
[1741361566176,46.72624977,144.63,144.51,101.72]
[1741361566478,46.72624977,144.63,144.51,39.72]
[1741361566677,0.04992108,144.58,144.56,0.0484245]
[1741361566872,6.9158,144.58,144.56,0.0484245]
[1741361567083,46.72624977,144.63,144.56,0.0484245]
[1741361567278,0.05206967,144.58,144.56,0.0484245]
[1741361567478,0.05047006,144.58,144.56,0.0484245]
[1741361568676,0.05047006,144.58,144.57,6.9162]
[1741361568876,0.05047006,144.58,144.56,0.0484245]
[1741361569777,0.05047006,144.58,144.57,6.9162]
[1741361569980,0.05047006,144.58,144.56,0.0484245]
[1741361570276,0.05047006,144.58,144.56,6.9650245]
[1741361570476,0.05047006,144.58,144.56,0.0484245]
[1741361571882,0.05047006,144.58,144.57,6.9162]
[1741361572384,57.43354977,144.69,144.56,0.0484245]